bitfinex/quotes_BTCUSD_20251007
["timestamp","ask_amount","ask_price","bid_price","bid_amount"]
[1759815774064,0.24671303,124540.0,124530.0,0.31618]
[1759815774640,0.24869303,124540.0,124530.0,0.31305]
[1759815775469,0.24869303,124540.0,124530.0,0.31088]
[1759815775900,0.24671303,124540.0,124530.0,0.31618]
[1759815776311,0.24869303,124540.0,124530.0,0.31088]
[1759815776491,0.24671303,124540.0,124530.0,0.31305]
[1759815776897,0.25097303,124540.0,124530.0,0.001]
[1759815777096,0.32500735,124540.0,124530.0,0.31088]
[1759815777315,0.32500735,124540.0,124530.0,0.001]
[1759815777849,0.32500735,124540.0,124530.0,0.23788]
[1759815778398,0.32500735,124540.0,124530.0,0.22744]
[1759815778610,0.32500735,124540.0,124530.0,0.31088]
[1759815779402,0.32500735,124540.0,124530.0,0.22744]
[1759815779601,0.32500735,124540.0,124530.0,0.001]
[1759815779827,0.32500735,124540.0,124530.0,0.31088]
[1759815781263,0.32500735,124540.0,124530.0,0.22744]
[1759815782222,0.34910833,124540.0,124530.0,0.22744]
[1759815784597,0.84678772,124540.0,124530.0,0.001]
[1759815785055,0.84678772,124540.0,124530.0,0.07204]
[1759815785260,0.84678772,124540.0,124530.0,0.1318]
[1759815785422,0.34910833,124540.0,124530.0,0.1318]
[1759815785629,0.16062966,124510.0,124500.0,0.04674172]
[1759815785833,0.16488966,124510.0,124500.0,0.03875936]
[1759815786031,0.16488966,124510.0,124500.0,0.34923442]
[1759815786238,0.16260966,124510.0,124500.0,0.50987699]
[1759815786696,0.16260966,124510.0,124500.0,0.51087699]
[1759815787732,0.16360966,124510.0,124500.0,0.51187699]
[1759815787894,0.16162966,124510.0,124500.0,0.51701699]
[1759815788444,0.16360966,124510.0,124500.0,0.35339442]
[1759815788650,0.16360966,124510.0,124500.0,0.35123442]
[1759815789157,0.16360966,124510.0,124500.0,0.51187699]
[1759815789572,0.16360966,124510.0,124500.0,0.51403699]
[1759815789926,0.16360966,124510.0,124500.0,0.35123442]
[1759815790964,0.16360966,124510.0,124500.0,0.35339442]
[1759815791172,0.16360966,124510.0,124500.0,0.35123442]
[1759815791377,0.16360966,124510.0,124500.0,0.51187699]
[1759815791792,0.16360966,124510.0,124500.0,0.51403699]
[1759815792001,0.16360966,124510.0,124500.0,0.51187699]
[1759815792211,0.00298,124510.0,124500.0,0.51187699]
[1759815792423,0.001,124510.0,124500.0,1.22039499]
[1759815797687,0.001,124510.0,124500.0,1.07406999]
[1759815800531,0.001,124510.0,124500.0,0.77361699]
[1759815800736,0.001,124510.0,124500.0,0.85705699]
[1759815804196,0.001,124510.0,124500.0,2.91038499]
[1759815804418,0.001,124510.0,124500.0,2.40618399]
[1759815804574,0.001,124510.0,124500.0,2.23844899]
[1759815805801,0.001,124510.0,124500.0,2.17779199]
[1759815806624,0.001,124510.0,124500.0,1.98782399]
[1759815807903,0.001,124510.0,124500.0,1.94454826]
[1759815811018,0.001,124510.0,124500.0,1.97117706]
[1759815814791,0.001,124510.0,124500.0,1.95295306]
[1759815816758,0.001,124510.0,124500.0,1.64303306]
[1759815816882,0.001,124510.0,124500.0,1.86947306]
[1759815817089,0.001,124510.0,124500.0,1.19331806]
[1759815818252,0.001,124510.0,124500.0,1.16657137]
[1759815818458,0.001,124510.0,124500.0,1.19067024]
[1759815828808,0.001,124510.0,124500.0,1.11152024]
[1759815835612,0.001,124510.0,124500.0,0.80164024]
[1759815835786,0.001,124510.0,124500.0,1.02808024]
[1759815836017,0.001,124510.0,124500.0,1.11152024]
[1759815838529,0.001,124510.0,124500.0,1.02808024]
[1759815838736,0.001,124510.0,124500.0,1.11152024]
[1759815839314,0.001,124510.0,124500.0,1.02808024]
[1759815839523,0.001,124510.0,124500.0,1.11152024]
[1759815847045,0.001,124510.0,124500.0,1.22642504]
[1759815848147,0.00053553,124540.0,124530.0,0.50060387]
[1759815848351,0.00053553,124540.0,124530.0,1.92227487]
[1759815848558,0.00053553,124540.0,124530.0,1.92748487]
[1759815848756,0.00053553,124540.0,124530.0,1.95158023]
[1759815848962,0.00053553,124540.0,124530.0,0.83978923]
[1759815849588,0.00053553,124540.0,124530.0,0.84078923]
[1759815850003,0.00153553,124540.0,124530.0,0.84178923]
[1759815855460,0.00153553,124540.0,124530.0,1.85844223]
[1759815855679,0.00153553,124540.0,124530.0,1.83959323]
[1759815855909,0.00153553,124540.0,124530.0,1.77894323]
[1759815857337,0.00153553,124540.0,124530.0,1.52207723]
[1759815862446,0.00153553,124540.0,124530.0,1.52203723]
[1759815862885,0.00153553,124540.0,124530.0,1.16668223]
[1759815863103,0.00153553,124540.0,124530.0,0.63620323]
[1759815863314,0.00153553,124540.0,124530.0,0.83653923]
[1759815863315,0.00351553,124540.0,124530.0,0.83653923]
[1759815864145,0.00351553,124540.0,124530.0,0.83657923]
[1759815864582,0.00153553,124540.0,124530.0,0.84178923]
[1759815872123,0.00579553,124540.0,124530.0,0.36609536]
[1759815872332,0.1663865,124540.0,124530.0,0.33601536]
[1759815872723,0.1663865,124540.0,124530.0,0.31192]
[1759815872957,0.2463833,124540.0,124530.0,0.22848]
[1759815873161,0.24950856,124540.0,124530.0,0.31192]
[1759815875891,0.24950856,124540.0,124530.0,0.31196]
[1759815877690,0.74712604,124540.0,124530.0,0.31196]
[1759815879288,0.24950856,124540.0,124530.0,0.31196]
[1759815879694,0.24950856,124540.0,124530.0,0.002]
[1759815879895,0.24950856,124540.0,124530.0,0.31196]
[1759815881130,0.74712604,124540.0,124530.0,0.22852]
[1759815881386,0.81508393,124540.0,124530.0,0.08544]
[1759815881587,1.31270141,124540.0,124530.0,0.181]
[1759815881786,0.31746645,124540.0,124530.0,0.181]
[1759815882049,1.31270141,124540.0,124530.0,0.181]
[1759815882445,1.31170141,124540.0,124530.0,0.18]
[1759815882579,1.31670141,124540.0,124530.0,0.181]
[1759815883375,1.31670141,124540.0,124530.0,0.2588]
[1759815883763,1.31670141,124540.0,124530.0,0.2578]
[1759815884326,1.32270141,124540.0,124530.0,0.2578]
[1759815887077,0.82508393,124540.0,124530.0,0.2578]
[1759815887706,1.32270141,124540.0,124530.0,0.2578]
[1759815888882,1.32270141,124540.0,124530.0,0.21792]
[1759815890196,0.82508393,124540.0,124530.0,0.21792]
[1759815892304,1.34680225,124540.0,124530.0,0.21792]
[1759815893631,0.35156729,124540.0,124530.0,0.21792]
[1759815893853,1.34680225,124540.0,124530.0,0.21792]
[1759815894926,0.84918477,124540.0,124530.0,0.21792]
[1759815895361,0.35156729,124540.0,124530.0,0.21792]
[1759815895774,0.84690477,124540.0,124530.0,0.21792]
[1759815895978,0.2813294,124540.0,124530.0,0.21792]
[1759815896183,0.78122688,124540.0,124530.0,0.21792]
[1759815898711,0.77894688,124540.0,124530.0,0.21792]
[1759815899069,0.78122688,124540.0,124530.0,0.21792]
[1759815902741,0.2813294,124540.0,124530.0,0.21792]
[1759815902941,0.82336596,124540.0,124530.0,0.21792]
[1759815903117,0.32574848,124540.0,124530.0,0.21792]
[1759815903558,0.32802848,124540.0,124530.0,0.21792]
[1759815904536,0.2836094,124540.0,124530.0,0.21792]
[1759815906171,0.2836094,124540.0,124530.0,0.001]
[1759815906382,0.2836094,124540.0,124530.0,0.00616]
[1759815906881,0.78129,124540.0,124530.0,0.00616]
[1759815907093,0.78129,124540.0,124530.0,0.001]
[1759815907315,0.8612868,124540.0,124530.0,0.07912]
[1759815907540,0.8763214,124540.0,124530.0,0.07912]
[1759815909932,0.8763214,124540.0,124530.0,0.001]
[1759815910136,0.8763214,124540.0,124530.0,0.13848]
[1759815910346,0.88384194,124540.0,124530.0,0.13848]
[1759815910520,0.88156832,124540.0,124530.0,0.13848]
[1759815910721,0.88384832,124540.0,124530.0,0.13848]
[1759815911238,0.38616772,124540.0,124530.0,0.13848]
[1759815912339,0.38616991,124540.0,124530.0,0.13848]
[1759815913002,0.88385051,124540.0,124530.0,0.13848]
[1759815916322,0.87632778,124540.0,124530.0,0.13848]
[1759815916564,0.85222694,124540.0,124530.0,0.13848]
[1759815916852,0.35454634,124540.0,124530.0,0.13848]
[1759815917052,0.85222694,124540.0,124530.0,0.13848]
[1759815917461,0.84994694,124540.0,124530.0,0.13848]
[1759815917665,0.85222694,124540.0,124530.0,0.13848]
[1759815918297,0.27226954,124540.0,124530.0,0.13848]
[1759815918506,0.25722856,124540.0,124530.0,0.14381]
[1759815918704,0.25722856,124540.0,124530.0,0.14059]
[1759815918909,0.25722856,124540.0,124530.0,0.13848]
[1759815919130,0.25950856,124540.0,124530.0,0.13848]
[1759815919374,0.25722856,124540.0,124530.0,0.13848]
[1759815920243,0.25524856,124540.0,124530.0,0.14381]
[1759815920662,0.25524856,124540.0,124530.0,0.30441387]
[1759815924827,0.01153553,124540.0,124530.0,0.64441387]
[1759815925252,0.01153553,124540.0,124530.0,0.6685096]
[1759815925869,0.00053553,124540.0,124530.0,0.6675096]
[1759815926318,0.1621265,124540.0,124530.0,0.36720573]
[1759815926544,0.1621265,124540.0,124530.0,0.8409496]
[1759815926752,0.1621265,124540.0,124530.0,0.68038573]
[1759815927026,0.1621265,124540.0,124530.0,0.5310296]
[1759815927218,0.1621265,124540.0,124530.0,0.8409896]
[1759815927432,0.1641065,124540.0,124530.0,0.8377696]
[1759815927640,0.1621265,124540.0,124530.0,0.8409896]
[1759815928546,0.1641065,124540.0,124530.0,0.8377696]
[1759815928880,0.1621265,124540.0,124530.0,0.8409896]
[1759815929089,0.1621265,124540.0,124530.0,0.8377696]
[1759815929306,0.1641065,124540.0,124530.0,0.36509573]
[1759815929516,0.1663865,124540.0,124530.0,0.67505573]
[1759815929735,0.1641065,124540.0,124530.0,0.67505573]
[1759815931552,0.1641065,124540.0,124530.0,0.8376896]
[1759815931850,0.1621265,124540.0,124530.0,0.81661387]
[1759815932082,0.1621265,124540.0,124530.0,0.31096]
[1759815932083,0.74718916,124540.0,124530.0,0.31096]
[1759815932327,0.24950856,124540.0,124530.0,0.31096]
[1759815933028,0.24950856,124540.0,124530.0,0.001]
[1759815933264,0.24950856,124540.0,124530.0,0.311]
[1759815933751,0.24950856,124540.0,124530.0,0.001]
[1759815933982,0.24950856,124540.0,124530.0,0.311]
[1759815934188,0.24950856,124540.0,124530.0,0.001]
[1759815934444,0.24950856,124540.0,124530.0,0.311]
[1759815935961,0.24524856,124540.0,124530.0,0.31605]
[1759815936166,0.24722856,124540.0,124530.0,0.311]
[1759815937792,0.24722856,124540.0,124530.0,0.31096]
[1759815938633,0.24950856,124540.0,124530.0,0.001]
[1759815939044,0.24950856,124540.0,124530.0,0.31096]
[1759815939671,0.32850536,124540.0,124530.0,0.30996]
[1759815939877,0.16061417,124530.0,124510.0,0.16866065]
[1759815940080,0.16061417,124530.0,124520.0,0.30996]
[1759815940262,0.16487417,124530.0,124520.0,0.30996]
[1759815940681,0.16487417,124530.0,124510.0,0.16866065]
[1759815940856,0.16487417,124530.0,124520.0,0.30996]
[1759815941061,0.16259417,124530.0,124520.0,0.30996]
[1759815941260,0.16487417,124530.0,124520.0,0.30996]
[1759815941446,0.16259417,124530.0,124520.0,0.30996]
[1759815941840,0.16687417,124530.0,124520.0,0.30996]
[1759815942480,0.17159417,124530.0,124520.0,0.001]
[1759815942697,0.17159417,124530.0,124520.0,0.31096]
[1759815942904,0.17459417,124530.0,124520.0,0.31196]
[1759815945486,0.17552642,124530.0,124520.0,0.31196]
[1759815946710,0.17552642,124530.0,124520.0,0.65402]
[1759815947109,0.17354642,124530.0,124520.0,0.65702]
[1759815947691,0.17552642,124530.0,124520.0,0.65702]
[1759815948050,0.17354642,124530.0,124520.0,0.65702]
[1759815948505,0.17552642,124530.0,124520.0,0.65196]
[1759815948706,0.17552642,124530.0,124520.0,0.65402]
[1759815949196,0.17354642,124530.0,124520.0,0.65702]
[1759815949872,0.17354642,124530.0,124520.0,0.65402]
[1759815950079,0.17552642,124530.0,124520.0,0.65196]
[1759815951682,0.17354642,124530.0,124520.0,0.65402]
[1759815951883,0.17353612,124530.0,124520.0,0.81763676]
[1759815954031,0.17551612,124530.0,124520.0,0.31402]
[1759815954251,0.17551612,124530.0,124520.0,0.31188]
[1759815954840,0.17551612,124530.0,124520.0,0.002]
[1759815955068,0.17779612,124530.0,124520.0,0.31188]
[1759815955276,0.26091818,124530.0,124520.0,0.31188]
[1759815955797,0.26091818,124530.0,124520.0,0.22844]
[1759815955999,0.25863818,124530.0,124520.0,0.31188]
[1759815956807,0.25665818,124530.0,124520.0,0.31694]
[1759815957695,0.25863818,124530.0,124520.0,0.31188]
[1759815957883,0.26091818,124530.0,124520.0,0.31188]
[1759815958649,0.26091818,124530.0,124520.0,0.002]
[1759815958868,0.26091818,124530.0,124520.0,0.31188]
[1759815960012,0.26091818,124530.0,124520.0,0.002]
[1759815960428,0.16061676,124520.0,124500.0,0.22240387]
[1759815960634,0.16260966,124510.0,124500.0,0.0266288]
[1759815960845,0.16260966,124510.0,124500.0,0.49715137]
[1759815960990,0.16260966,124510.0,124500.0,0.47258257]
[1759815961604,0.16260966,124510.0,124500.0,0.47358257]
[1759815962044,0.16260966,124510.0,124500.0,0.47258257]
[1759815962980,0.16760966,124510.0,124500.0,0.47258257]
[1759815963383,0.16662966,124510.0,124500.0,0.47660257]
[1759815964148,0.16859966,124510.0,124500.0,0.47660257]
[1759815964381,0.16859966,124510.0,124500.0,0.31596]
[1759815964647,0.16859966,124510.0,124500.0,0.31294]
[1759815964859,0.16662966,124510.0,124500.0,0.31294]
[1759815965089,0.16662966,124510.0,124500.0,0.31596]
[1759815965230,0.16859966,124510.0,124500.0,0.31596]
[1759815965431,0.16859966,124510.0,124500.0,0.31294]
[1759815965916,0.16913532,124510.0,124500.0,0.31294]
[1759815966921,0.16913532,124510.0,124500.0,0.31088]
[1759815967363,0.17142532,124510.0,124500.0,0.22748]
[1759815967567,0.17142532,124510.0,124500.0,0.31092]
[1759815968130,0.16913532,124510.0,124500.0,0.31092]
[1759815969423,0.16913532,124510.0,124500.0,0.47156257]
[1759815969593,0.16913532,124510.0,124500.0,0.31092]
[1759815970006,0.16913532,124510.0,124500.0,0.001]
[1759815970214,0.21065173,124510.0,124500.0,0.31088]
[1759815970835,0.21294173,124510.0,124500.0,0.31088]
[1759815971451,0.29606379,124510.0,124500.0,0.08444]
[1759815971653,0.29606379,124510.0,124500.0,0.31092]
[1759815972874,0.29606379,124510.0,124500.0,0.22748]
[1759815973076,0.29606379,124510.0,124500.0,0.31092]
[1759815973523,0.25454738,124510.0,124500.0,0.31092]
[1759815976075,0.25225738,124510.0,124500.0,0.31092]
[1759815976963,0.25454738,124510.0,124500.0,0.31092]
[1759815977402,0.25225738,124510.0,124500.0,0.31092]
[1759815981469,0.25028738,124510.0,124500.0,0.47654257]
[1759815981906,0.25028738,124510.0,124500.0,0.3159]
[1759815983890,0.25028738,124510.0,124500.0,0.47654257]
[1759815985083,0.25028738,124510.0,124500.0,0.3159]
[1759815986271,0.25028738,124510.0,124500.0,0.47654257]
[1759815992613,0.08965772,124510.0,124500.0,0.47654257]
[1759815992818,0.16716532,124510.0,124500.0,0.47654257]
[1759815995393,0.16716532,124510.0,124500.0,0.16662257]
[1759815995627,0.16716532,124510.0,124500.0,0.31096]
[1759815995628,0.25454738,124510.0,124500.0,0.31096]
[1759815996516,0.25226738,124510.0,124500.0,0.31096]
[1759815997168,0.25226738,124510.0,124500.0,0.3350641]
[1759815997426,0.25226738,124510.0,124500.0,0.3370441]
[1759815998985,0.25226738,124510.0,124500.0,0.3402641]
[1759815999888,0.25028738,124510.0,124500.0,0.3402641]
[1759816000654,0.25028738,124510.0,124500.0,0.50090667]
[1759816000872,0.25028738,124510.0,124500.0,0.3402641]
[1759816001454,0.7934282,124510.0,124500.0,0.0251041]
[1759816001656,0.29563779,124510.0,124500.0,0.001]
[1759816001859,0.7934282,124510.0,124500.0,0.26272]
[1759816002697,0.7884282,124510.0,124500.0,0.001]
[1759816003083,1.31125725,124510.0,124500.0,0.18164]
[1759816003265,1.33536567,124510.0,124500.0,0.18164]
[1759816003418,0.83757526,124510.0,124500.0,0.18164]
[1759816003616,0.83657526,124510.0,124500.0,0.18064]
[1759816003826,0.81546684,124510.0,124500.0,0.002]
[1759816004309,0.80546148,124510.0,124500.0,0.001]
[1759816004552,0.16064257,124500.0,124490.0,0.2266784]
[1759816004740,0.82581184,124500.0,124490.0,0.22717631]
[1759816005692,0.83581184,124500.0,124490.0,0.22817631]
[1759816006949,0.83981184,124500.0,124490.0,0.22917631]
[1759816013686,0.75981504,124500.0,124490.0,0.22917631]
[1759816015123,0.26202463,124500.0,124490.0,0.22917631]
[1759816015329,0.75981504,124500.0,124490.0,0.22917631]
[1759816017890,0.25974463,124500.0,124490.0,0.22917631]
[1759816018097,0.75753504,124500.0,124490.0,0.23115631]
[1759816018317,0.83753184,124500.0,124490.0,0.22917631]
[1759816019155,0.83981184,124500.0,124490.0,0.22917631]
[1759816019343,1.33760225,124500.0,124490.0,0.22921631]
[1759816020973,0.34202143,124500.0,124490.0,0.22921631]
[1759816021230,0.83981184,124500.0,124490.0,0.22921631]
[1759816024452,0.34202143,124500.0,124490.0,0.22921631]
[1759816024882,0.75981504,124500.0,124490.0,0.22921631]
[1759816025090,0.76006439,124500.0,124490.0,0.22921631]
[1759816025779,0.26202463,124500.0,124490.0,0.22921631]
[1759816026782,0.25974463,124500.0,124490.0,0.23130631]
[1759816026993,0.25776463,124500.0,124490.0,0.23445631]
[1759816027194,0.25974463,124500.0,124490.0,0.23130631]
[1759816027393,0.25974463,124500.0,124490.0,0.22921631]
[1759816028210,0.25776463,124500.0,124490.0,0.23445631]
[1759816028659,0.25776463,124500.0,124490.0,0.23130631]
[1759816028857,0.25776463,124500.0,124490.0,0.23445631]
[1759816029078,0.25974463,124500.0,124490.0,0.22921631]
[1759816029220,0.25974463,124500.0,124490.0,0.23130631]
[1759816029454,0.25974463,124500.0,124490.0,0.22921631]
[1759816030425,0.26202463,124500.0,124490.0,0.22921631]
[1759816030657,0.25974463,124500.0,124490.0,0.22921631]
[1759816030855,0.26202463,124500.0,124490.0,0.22921631]
[1759816031363,0.25974463,124500.0,124490.0,0.22921631]
[1759816031750,0.26202463,124500.0,124490.0,0.22921631]
[1759816032593,0.25974463,124500.0,124490.0,0.22921631]
[1759816032796,0.30617267,124500.0,124490.0,0.22921631]
[1759816033433,0.30845267,124500.0,124490.0,0.22921631]
[1759816033670,0.30617267,124500.0,124490.0,0.23130631]
[1759816033910,0.30617267,124500.0,124490.0,0.23445631]
[1759816034119,0.30419267,124500.0,124490.0,0.23445631]
[1759816034354,0.30618267,124500.0,124490.0,0.22921631]
[1759816035003,1.30618267,124500.0,124490.0,0.22921631]
[1759816035683,1.30618267,124500.0,124490.0,0.00269631]
[1759816035915,1.30618267,124500.0,124490.0,0.31269631]
[1759816036365,1.30618267,124500.0,124490.0,0.00269631]
[1759816036571,1.25975463,124500.0,124490.0,0.31269631]
[1759816036774,1.25975463,124500.0,124490.0,0.31478631]
[1759816036955,1.25975463,124500.0,124490.0,0.00269631]
[1759816037225,1.25975463,124500.0,124490.0,0.22921631]
[1759816038028,1.25975463,124500.0,124490.0,0.00269631]
[1759816038239,1.25975463,124500.0,124490.0,0.31269631]
[1759816038240,1.26203463,124500.0,124490.0,0.31269631]
[1759816039012,1.25975463,124500.0,124490.0,0.31269631]
[1759816039434,1.25975463,124500.0,124490.0,0.00269631]
[1759816039594,1.25975463,124500.0,124490.0,0.31269631]
[1759816040229,1.26203463,124500.0,124490.0,0.31269631]
[1759816041062,1.25975463,124500.0,124490.0,0.31269631]
[1759816041685,1.26203463,124500.0,124490.0,0.00269631]
[1759816041891,1.26203463,124500.0,124490.0,0.22921631]
[1759816041892,1.27083981,124500.0,124490.0,0.22921631]
[1759816042942,1.26855981,124500.0,124490.0,0.22921631]
[1759816043927,1.27083981,124500.0,124490.0,0.22921631]
[1759816044627,1.26855981,124500.0,124490.0,0.22921631]
[1759816044870,1.27083981,124500.0,124490.0,0.22921631]
[1759816045091,1.27083981,124500.0,124490.0,0.31269631]
[1759816045894,1.27083981,124500.0,124490.0,0.22921631]
[1759816047539,1.26855981,124500.0,124490.0,0.22921631]
[1759816048145,1.27083981,124500.0,124490.0,0.22921631]
[1759816048580,1.28588916,124500.0,124490.0,0.22921631]
[1759816050685,1.28360916,124500.0,124490.0,0.22921631]
[1759816051063,1.28360916,124500.0,124490.0,0.00269631]
[1759816051221,1.28588916,124500.0,124490.0,0.22917631]
[1759816053555,1.28360916,124500.0,124490.0,0.22917631]
[1759816053764,1.28360916,124500.0,124490.0,0.23124631]
[1759816053914,1.28360916,124500.0,124490.0,0.22917631]
[1759816054321,1.28588916,124500.0,124490.0,0.22917631]
[1759816054521,1.28588897,124500.0,124490.0,0.22917631]
[1759816054912,1.28360897,124500.0,124490.0,0.22917631]
[1759816055771,1.28588897,124500.0,124490.0,0.22917631]
[1759816056015,1.28588897,124500.0,124490.0,0.00269631]
[1759816056263,1.28588897,124500.0,124490.0,0.22917631]
[1759816057854,1.28360897,124500.0,124490.0,0.22917631]
[1759816058127,1.27480379,124500.0,124490.0,0.22917631]
[1759816058340,1.27480379,124500.0,124490.0,0.23119631]
[1759816058545,1.27480379,124500.0,124490.0,0.22917631]
[1759816058961,1.27708379,124500.0,124490.0,0.22917631]
[1759816059948,1.27480379,124500.0,124490.0,0.22917631]
[1759816060165,1.27480379,124500.0,124490.0,0.23428631]
[1759816060368,1.27281379,124500.0,124490.0,0.23428631]
[1759816060980,1.25776463,124500.0,124490.0,0.23428631]
[1759816061383,1.25975463,124500.0,124490.0,0.22917631]
[1759816061591,1.33975143,124500.0,124490.0,0.22917631]
[1759816061795,1.33975143,124500.0,124490.0,0.23119631]
[1759816062206,1.33975143,124500.0,124490.0,0.22917631]
[1759816063909,1.34202143,124500.0,124490.0,0.22917631]
[1759816065796,1.35707139,124500.0,124490.0,0.22917631]
[1759816069995,1.17464257,124500.0,124490.0,0.23428631]
[1759816070625,1.17464257,124500.0,124490.0,0.00780631]
[1759816070831,1.17464257,124500.0,124490.0,0.31776631]
[1759816071336,1.01075,124500.0,124490.0,1.54773374]
[1759816071565,1.00329,124500.0,124490.0,1.54773374]
[1759816071775,1.00329,124500.0,124490.0,1.57183205]
[1759816072204,1.0,124500.0,124490.0,1.57083205]
[1759816072413,1.0,124500.0,124490.0,1.56983205]
[1759816072641,1.002,124500.0,124490.0,1.57083205]
[1759816072865,1.006,124500.0,124490.0,1.57183205]
[1759816073088,1.004,124500.0,124490.0,1.57083205]
[1759816074416,1.006,124500.0,124490.0,1.57183205]
[1759816074840,1.006,124500.0,124490.0,1.56983205]
[1759816074841,1.0,124500.0,124490.0,1.56983205]
[1759816075126,1.001,124500.0,124490.0,1.57283205]
[1759816075357,1.001,124500.0,124490.0,1.57883205]
[1759816075971,1.001,124500.0,124490.0,1.91319205]
[1759816076517,1.001,124500.0,124490.0,1.97472095]
[1759816079481,1.001,124500.0,124490.0,1.27806795]
[1759816079846,1.001,124500.0,124490.0,1.92234795]
[1759816080803,1.001,124500.0,124490.0,1.89219605]
[1759816081000,1.001,124500.0,124490.0,1.23546599]
[1759816081401,1.001,124500.0,124490.0,0.81814599]
[1759816081607,1.001,124500.0,124490.0,0.61991009]
[1759816081806,1.001,124500.0,124490.0,0.72110609]
[1759816082011,1.001,124500.0,124490.0,0.84679009]
[1759816082215,1.00304,124500.0,124490.0,0.84679009]
[1759816082419,1.00597,124500.0,124490.0,0.50477009]
[1759816083084,1.00597,124500.0,124490.0,0.84477009]
[1759816083289,1.00597,124500.0,124490.0,0.50477009]
[1759816083498,1.00597,124500.0,124490.0,0.84477009]
[1759816083712,1.00497,124500.0,124490.0,0.84177009]
[1759816083927,1.00597,124500.0,124490.0,0.84277009]
[1759816084349,1.00597,124500.0,124490.0,0.83677009]
[1759816084784,1.00597,124500.0,124490.0,0.84277009]
[1759816086646,1.16661257,124500.0,124490.0,0.84277009]
[1759816086843,1.16661257,124500.0,124490.0,0.34211462]
[1759816088949,1.24973463,124500.0,124490.0,0.34211462]
[1759816091943,1.24680463,124500.0,124490.0,0.34211462]
[1759816092359,1.24973463,124500.0,124490.0,0.34211462]
[1759816093515,1.24476463,124500.0,124490.0,0.34211462]
[1759816094548,1.24973463,124500.0,124490.0,0.34211462]
[1759816099686,1.24476463,124500.0,124490.0,0.34211462]
[1759816100097,1.24680463,124500.0,124490.0,0.34211462]
[1759816100513,1.24973463,124500.0,124490.0,0.34211462]
[1759816105487,1.24973463,124500.0,124490.0,0.23457631]
[1759816106590,1.24873463,124500.0,124490.0,0.23357631]
[1759816106791,1.25373463,124500.0,124490.0,0.23457631]
[1759816106995,1.25373463,124500.0,124490.0,0.22857631]
[1759816107203,1.25473463,124500.0,124490.0,0.22857631]
[1759816110566,1.25473463,124500.0,124490.0,0.00169631]
[1759816113565,0.16065547,124490.0,124470.0,0.26981881]
[1759816113767,0.16065547,124490.0,124480.0,0.16066818]
[1759816114214,0.16065547,124490.0,124480.0,0.16086661]
[1759816114429,0.74697827,124490.0,124480.0,0.00019843]
[1759816114790,0.82697507,124490.0,124480.0,0.00019843]
[1759816114988,0.33206433,124490.0,124480.0,0.00019843]
[1759816115488,0.32906433,124490.0,124480.0,0.00019843]
[1759816115696,0.82697507,124490.0,124480.0,0.00019843]
[1759816115808,0.83097507,124490.0,124480.0,0.00119843]
[1759816116015,0.33306433,124490.0,124480.0,0.00119843]
[1759816116211,0.83097507,124490.0,124480.0,0.00119843]
[1759816116409,0.83097507,124490.0,124480.0,0.00219843]
[1759816118538,0.33306433,124490.0,124480.0,0.00219843]
[1759816132428,0.25306753,124490.0,124480.0,0.00219843]
[1759816143615,0.16465547,124490.0,124480.0,0.00219843]
[1759816143751,0.16674547,124490.0,124480.0,0.00219843]
[1759816144129,0.16996547,124490.0,124480.0,0.00219843]
[1759816145351,0.16996547,124490.0,124480.0,0.31267843]
[1759816145679,0.25308753,124490.0,124480.0,0.00219843]
[1759816145882,0.32705327,124490.0,124480.0,0.22927843]
[1759816146285,0.32705327,124490.0,124480.0,0.00219843]
[1759816146479,0.25308753,124490.0,124480.0,0.16223843]
[1759816150875,0.25308753,124490.0,124480.0,0.00219843]
[1759816156984,0.78130335,124490.0,124480.0,0.00219843]
[1759816157191,0.80387355,124490.0,124480.0,0.00219843]
[1759816157832,0.79987355,124490.0,124480.0,0.00119843]
[1759816158042,0.88687035,124490.0,124480.0,0.00119843]
[1759816158250,0.91687035,124490.0,124480.0,0.00119843]
[1759816158545,0.97754384,124490.0,124480.0,0.00119843]
[1759816158961,0.6587452,124470.0,124460.0,0.0004]
[1759816159170,0.74186726,124470.0,124460.0,0.00047998]
[1759816159384,0.35926204,124470.0,124460.0,0.00047998]
[1759816159634,0.87235075,124470.0,124460.0,0.0008769]
[1759816160943,1.37441467,124470.0,124460.0,0.0008769]
[1759816161162,1.38192334,124470.0,124460.0,0.0008769]
[1759816161388,1.37541467,124470.0,124460.0,0.0008769]
[1759816161831,1.38291938,124470.0,124460.0,0.0008769]
[1759816162273,1.37041467,124470.0,124460.0,0.0008769]
[1759816162516,1.10667075,124470.0,124460.0,0.0008769]
[1759816162711,0.88635075,124470.0,124460.0,0.0008769]
[1759816162913,1.11367075,124470.0,124460.0,0.0008769]
[1759816164806,0.38828683,124470.0,124460.0,0.0008769]
[1759816165038,1.11367075,124470.0,124460.0,0.0008769]
[1759816165472,1.46116523,124470.0,124460.0,0.0008769]
[1759816166057,1.95922915,124470.0,124460.0,0.0008769]
[1759816166186,1.98422915,124470.0,124460.0,0.0008769]
[1759816166819,1.98422915,124470.0,124420.0,0.0004]
[1759816166820,0.16073294,124430.0,124420.0,0.0004]
[1759816167042,0.27600139,124430.0,124420.0,0.00054934]
[1759816167263,0.28131139,124430.0,124420.0,0.00054934]
[1759816167716,0.249165,124430.0,124420.0,0.00054934]
[1759816167947,0.74722892,124430.0,124420.0,0.00054934]
[1759816168158,0.97458892,124430.0,124420.0,0.00054934]
[1759816168367,0.476525,124430.0,124420.0,0.00654934]
[1759816169001,0.479525,124430.0,124420.0,0.00654934]
[1759816169226,0.479525,124430.0,124420.0,0.00054934]
[1759816169608,0.5565218,124430.0,124420.0,0.00154934]
[1759816170098,0.5625218,124430.0,124420.0,0.00154934]
[1759816170413,0.57748605,124430.0,124420.0,0.00154934]
[1759816170628,0.5625618,124430.0,124420.0,0.00154934]
[1759816171479,0.57752301,124430.0,124420.0,0.00154934]
[1759816172290,0.57752333,124430.0,124420.0,0.00154934]
[1759816172499,0.57752333,124430.0,124420.0,0.00234351]
[1759816173676,1.07558725,124430.0,124420.0,0.00234351]
[1759816173894,1.10573915,124430.0,124420.0,0.00234351]
[1759816174983,1.11373915,124430.0,124420.0,0.00234351]
[1759816175319,0.88633915,124430.0,124420.0,0.00234351]
[1759816175521,1.11373915,124430.0,124420.0,0.00234351]
[1759816175926,1.1212162,124430.0,124420.0,0.00234351]
[1759816176527,1.4612162,124430.0,124420.0,0.00234351]
[1759816178865,1.4612162,124430.0,124420.0,1e-08]
[1759816179065,0.52574586,124420.0,124410.0,1e-08]
[1759816179438,1.4539905,124420.0,124410.0,4.97e-05]
[1759816179645,0.73362658,124420.0,124410.0,4.97e-05]